fUST/lending_fUST_20240518
["ID","MTS","AMOUNT","RATE_DAILY","PERIOD"]
[327348360,1716004242250,-151.0,0.00016711,2]
[327348361,1716004242259,-27020.57957902,0.00016712,3]
[327348380,1716004242412,-1139.66747009,0.00016712,3]
[327348404,1716004242577,-5278.11,0.00016438,2]
[327348406,1716004242586,-8759.72655987,0.00016712,3]
[327348408,1716004242595,-500.0,0.00016712,2]
[327348410,1716004242605,-500.0,0.00016712,2]
[327348412,1716004242613,-500.0,0.00016712,2]
[327348413,1716004242623,-339.62359236,0.00016712,2]
[327348416,1716004242632,-500.0,0.00016712,2]
[327348417,1716004242641,-500.0,0.00016712,2]
[327348420,1716004242650,-500.0,0.00016712,2]
[327348423,1716004242660,-178.16015794,0.00016712,2]
[327348426,1716004242669,-500.0,0.00016712,2]
[327348429,1716004242678,-500.0,0.00016712,2]
[327348433,1716004242688,-500.0,0.00016712,2]
[327348435,1716004242697,-500.0,0.00016712,2]
[327348438,1716004242706,-151.0,0.00016712,2]
[327348439,1716004242716,-151.0,0.00016712,2]
[327348441,1716004242725,-500.0,0.00016712,2]
[327348444,1716004242735,-151.0,0.00016712,2]
[327348446,1716004242743,-151.0,0.00016712,2]
[327348448,1716004242753,-500.0,0.00016712,2]
[327348450,1716004242763,-551.4590316,0.00016712,2]
[327348452,1716004242772,-151.0,0.00016712,2]
[327348454,1716004242781,-151.0,0.00016712,2]
[327348456,1716004242790,-154.93609313,0.00016712,2]
[327348458,1716004242799,-151.0,0.00016712,2]
[327348459,1716004242808,-151.0,0.00016712,2]
[327348461,1716004242819,-175.42796032,0.00016712,2]
[327348523,1716004243424,-324.57203968,0.00016712,2]
[327348525,1716004243433,-77.69092821,0.00016712,2]
[327348791,1716005140105,-1149.07076386,0.00015,2]
[327348792,1716005140127,-241.88007353,0.00015,2]
[327348793,1716005246083,-273.37336231,9.9e-05,2]
[327348794,1716005246106,-308.607771,0.0001476,2]
[327348795,1716005246129,-3997.31452197,0.00015,2]
[327348796,1716005254171,-803.36916615,0.00015,2]
[327348860,1716005432426,-364.91402204,0.00015,2]
[327348861,1716005432436,-477.87464101,0.00015,2]
[327348898,1716005438251,-671.19612285,0.00015,2]
[327348900,1716005438260,-942.53705457,0.00015,2]
[327348903,1716005438271,-7100.90113281,0.00015896,2]
[327348904,1716005438280,-224.05808453,0.00015898,2]
[327348906,1716005438289,-833.13661613,0.00015898,2]
[327348908,1716005438298,-315.38947286,0.00015997,2]
[327348910,1716005438307,-2112.43908462,0.00015997,2]
[327348912,1716005438316,-1048.71679056,0.00015997,2]
[327348914,1716005438325,-581.32291268,0.00015997,2]
[327348916,1716005438334,-2564.41177483,0.00015997,2]
[327348919,1716005438343,-379.8280133,0.00015997,2]
[327348922,1716005438353,-80000.0,0.00015997,2]
[327348925,1716005438362,-1704.29237534,0.00015998,2]
[327348928,1716005438371,-604.7952115,0.00016,2]
[327348930,1716005438381,-7967.64444353,0.00016,2]
[327348933,1716005438389,-1924.34649265,0.00016,2]
[327348936,1716005438402,-224.05808449,0.00016077,2]
[327348939,1716005438411,-803.53609818,0.00016236,2]
[327348942,1716005438420,-224.05808449,0.00016255,2]
[327348945,1716005438429,-460.9,0.00016273,2]
[327348948,1716005438439,-460.9,0.00016273,3]
[327348950,1716005438448,-306.0,0.00016301,2]
[327348952,1716005438457,-153.0,0.00016301,2]
[327348954,1716005438470,-153.0,0.00016301,2]
[327348956,1716005438480,-153.0,0.00016301,2]
[327348958,1716005438488,-153.0,0.00016301,2]
[327348960,1716005438498,-153.0,0.00016301,2]
[327348962,1716005438509,-153.0,0.00016301,2]
[327348964,1716005438518,-2000.0,0.00016338,2]
[327348966,1716005438528,-224.05808449,0.00016434,2]
[327348968,1716005438538,-1142.44395601,0.00016435,2]
[327348970,1716005438550,-1000.0,0.00016435,2]
[327348972,1716005438558,-5364.94294758,0.00016438,3]
[327348974,1716005438567,-500.0,0.00016438,2]
[327348976,1716005438576,-510.85934954,0.00016438,2]
[327348978,1716005438586,-175.0,0.00016438,2]
[327348980,1716005438595,-700.18,0.00016438,2]
[327348982,1716005438605,-700.18,0.00016438,2]
[327348984,1716005438614,-700.18,0.00016438,2]
[327348986,1716005438624,-700.18,0.00016438,2]
[327348988,1716005438633,-700.18,0.00016438,2]
[327348990,1716005438642,-700.18,0.00016438,2]
[327348992,1716005438653,-700.18,0.00016438,2]
[327348994,1716005438661,-700.18,0.00016438,2]
[327348996,1716005438670,-700.18,0.00016438,2]
[327348998,1716005438679,-700.18,0.00016438,2]
[327349000,1716005438690,-504.45858188,0.00016438,2]
[327349001,1716005438699,-500.0,0.00016438,2]
[327349004,1716005438709,-500.0,0.00016438,2]
[327349005,1716005438718,-502.08295869,0.00016438,2]
[327349007,1716005438728,-357.51374573,0.00016438,2]
[327349009,1716005438737,-504.02903503,0.00016438,2]
[327349011,1716005438746,-501.04863178,0.00016438,2]
[327349013,1716005438755,-500.19544877,0.00016438,2]
[327349015,1716005438764,-500.79516664,0.00016438,2]
[327349017,1716005438773,-500.0,0.00016438,2]
[327349019,1716005438782,-500.0,0.00016438,2]
[327349021,1716005438791,-500.0,0.00016438,2]
[327349023,1716005438800,-500.0,0.00016438,2]
[327349025,1716005438810,-500.0,0.00016438,2]
[327349027,1716005438818,-500.0,0.00016438,2]
[327349029,1716005438828,-500.0,0.00016438,2]
[327349031,1716005438837,-500.0,0.00016438,2]
[327349033,1716005438846,-500.0,0.00016438,2]
[327349034,1716005438855,-500.0,0.00016438,2]
[327349036,1716005438863,-500.0,0.00016438,2]
[327349038,1716005438873,-504.86585326,0.00016438,2]
[327349040,1716005438881,-538.39920543,0.00016438,2]
[327349042,1716005438890,-501.98348784,0.00016438,2]
[327349044,1716005438901,-604.06471565,0.00016438,2]
[327349046,1716005438910,-503.42853297,0.00016438,2]
[327349048,1716005438920,-502.63030316,0.00016438,2]
[327349050,1716005438929,-1001.84547682,0.00016438,2]
[327349052,1716005438938,-590.62528277,0.00016438,2]
[327349054,1716005438946,-299.40876376,0.00016438,2]
[327349056,1716005438955,-500.0,0.00016438,2]
[327349058,1716005438964,-503.53087562,0.00016438,2]
[327349060,1716005438972,-500.0,0.00016438,2]
[327349062,1716005438981,-500.0,0.00016438,2]
[327349064,1716005438990,-500.0,0.00016438,2]
[327349066,1716005438999,-500.0,0.00016438,2]
[327349068,1716005439009,-500.0,0.00016438,2]
[327349070,1716005439018,-500.0,0.00016438,2]
[327349072,1716005439027,-503.81819159,0.00016438,2]
[327349074,1716005439036,-246.97972244,0.00016438,2]
[327349076,1716005439045,-501.18967635,0.00016438,2]
[327349078,1716005439054,-501.2323505,0.00016438,2]
[327349080,1716005439063,-501.65535195,0.00016438,2]
[327349082,1716005439072,-501.58162823,0.00016438,2]
[327349084,1716005439081,-502.61595629,0.00016438,2]
[327349086,1716005439089,-501.10910641,0.00016438,2]
[327349088,1716005439098,-503.17044641,0.00016438,2]
[327349089,1716005439107,-500.0,0.00016438,2]
[327349091,1716005439116,-503.94273132,0.00016438,2]
[327349093,1716005439126,-502.13088383,0.00016438,2]
[327349095,1716005439135,-504.44179032,0.00016438,2]
[327349097,1716005439145,-502.05036398,0.00016438,2]
[327349099,1716005439155,-501.80590417,0.00016438,2]
[327349101,1716005439164,-500.0,0.00016438,2]
[327349103,1716005439174,-503.70904018,0.00016438,2]
[327349105,1716005439184,-500.99087849,0.00016438,2]
[327349107,1716005439193,-501.56839334,0.00016438,2]
[327349109,1716005439203,-501.17893466,0.00016438,2]
[327349111,1716005439213,-500.0,0.00016438,2]
[327349113,1716005439222,-534.11558995,0.00016438,2]
[327349115,1716005439231,-502.19025893,0.00016438,2]
[327349117,1716005439242,-502.19920621,0.00016438,2]
[327349119,1716005439251,-497.09165265,0.00016438,2]
[327349121,1716005439260,-500.0,0.00016438,2]
[327349123,1716005439270,-500.0,0.00016438,2]
[327349125,1716005439279,-500.0,0.00016438,2]
[327349127,1716005439288,-501.63514118,0.00016438,2]
[327349129,1716005439298,-500.0,0.00016438,2]
[327349131,1716005439307,-500.68248343,0.00016438,2]
[327349133,1716005439316,-503.58629594,0.00016438,2]
[327349135,1716005439326,-625.72210853,0.00016438,2]
[327349137,1716005439335,-500.0,0.00016438,2]
[327349139,1716005439344,-506.23851799,0.00016438,2]
[327349141,1716005439353,-500.0,0.00016438,2]
[327349143,1716005439362,-501.50186471,0.00016438,2]
[327349145,1716005439371,-502.03869105,0.00016438,2]
[327349147,1716005439380,-500.0,0.00016438,2]
[327349149,1716005439389,-500.0,0.00016438,2]
[327349151,1716005439398,-501.67118055,0.00016438,2]
[327349153,1716005439407,-501.8025543,0.00016438,2]
[327349155,1716005439416,-500.0,0.00016438,2]
[327349157,1716005439426,-281.55010882,0.00016438,2]
[327349159,1716005439435,-500.80389508,0.00016438,2]
[327349161,1716005439444,-546.01300115,0.00016438,2]
[327349162,1716005439454,-269.00562539,0.00016438,2]
[327349165,1716005439468,-502.21155139,0.00016438,2]
[327349166,1716005439477,-598.61881444,0.00016438,2]
[327349168,1716005439487,-500.0,0.00016438,2]
[327349170,1716005439497,-502.97511639,0.00016438,2]
[327349172,1716005439507,-507.28998199,0.00016438,2]
[327349174,1716005439516,-500.0,0.00016438,2]
[327349176,1716005439526,-501.25576528,0.00016438,2]
[327349177,1716005439534,-502.15095282,0.00016438,2]
[327349178,1716005439545,-502.59145835,0.00016438,2]
[327349179,1716005439554,-500.73076359,0.00016438,2]
[327349180,1716005439563,-501.3686807,0.00016438,2]
[327349181,1716005439572,-506.42159147,0.00016438,2]
[327349182,1716005439581,-510.1134858,0.00016438,2]
[327349183,1716005439591,-500.0,0.00016438,2]
[327349184,1716005439599,-502.47710006,0.00016438,2]
[327349185,1716005439608,-500.0,0.00016438,2]
[327349186,1716005439618,-501.27242285,0.00016438,2]
[327349187,1716005439627,-509.49216685,0.00016438,2]
[327349188,1716005439637,-500.0,0.00016438,2]
[327349189,1716005439647,-501.92717773,0.00016438,2]
[327349190,1716005439656,-503.41415471,0.00016438,2]
[327349191,1716005439665,-501.97624276,0.00016438,2]
[327349192,1716005439675,-503.48114508,0.00016438,2]
[327349193,1716005439684,-500.0,0.00016438,2]
[327349194,1716005439694,-502.37017628,0.00016438,2]
[327349197,1716005439703,-500.0,0.00016438,2]
[327349199,1716005439713,-500.0,0.00016438,2]
[327349201,1716005439723,-501.73833322,0.00016438,2]
[327349203,1716005439732,-502.40917785,0.00016438,2]
[327349205,1716005439742,-503.92729263,0.00016438,2]
[327349207,1716005439751,-504.13869779,0.00016438,2]
[327349209,1716005439761,-501.87634161,0.00016438,2]
[327349211,1716005439770,-500.0,0.00016438,2]
[327349213,1716005439779,-158.80837085,0.00016438,2]
[327349215,1716005439789,-505.90325461,0.00016438,2]
[327349217,1716005439799,-500.72470488,0.00016438,2]
[327349221,1716005439808,-505.65154867,0.00016438,2]
[327349223,1716005439818,-502.21349185,0.00016438,2]
[327349226,1716005439827,-503.77447616,0.00016438,2]
[327349228,1716005439836,-501.93659509,0.00016438,2]
[327349230,1716005439845,-501.73481911,0.00016438,2]
[327349232,1716005439855,-500.0,0.00016438,2]
[327349234,1716005439864,-500.0,0.00016438,2]
[327349237,1716005439874,-502.43960808,0.00016438,2]
[327349239,1716005439883,-507.76393073,0.00016438,2]
[327349241,1716005439892,-500.0,0.00016438,2]
[327349243,1716005439903,-523.00134358,0.00016438,2]
[327349244,1716005439912,-502.89071705,0.00016438,2]
[327349246,1716005439922,-503.56471971,0.00016438,2]
[327349249,1716005439931,-506.60546792,0.00016438,2]
[327349250,1716005439940,-503.11489218,0.00016438,2]
[327349252,1716005439949,-501.32013921,0.00016438,2]
[327349254,1716005439958,-505.15317079,0.00016438,2]
[327349256,1716005439967,-504.77630118,0.00016438,2]
[327349258,1716005439976,-519.14313656,0.00016438,2]
[327349260,1716005439985,-500.21504838,0.00016438,2]
[327349262,1716005439994,-500.0,0.00016438,2]
[327349264,1716005440003,-500.0,0.00016438,2]
[327349277,1716005440125,-500.60321915,0.00016438,2]
[327349279,1716005440134,-160.13523699,0.00016438,2]
[327349281,1716005440144,-207.31789753,0.00016438,2]
[327349283,1716005440153,-501.0762932,0.00016438,2]
[327349285,1716005440162,-514.64272281,0.00016438,2]
[327349287,1716005440171,-501.87578921,0.00016438,2]
[327349289,1716005440179,-188.12688385,0.00016438,2]
[327349291,1716005440188,-507.61820977,0.00016438,2]
[327349293,1716005440197,-500.28783267,0.00016438,2]
[327349295,1716005440206,-565.2586462,0.00016438,2]
[327349297,1716005440215,-500.95129566,0.00016438,2]
[327349299,1716005440224,-514.7139242,0.00016438,2]
[327349301,1716005440232,-507.09461867,0.00016438,2]
[327349302,1716005440242,-608.56001064,0.00016438,2]
[327349304,1716005440251,-505.06299649,0.00016438,2]
[327349306,1716005440260,-503.41110516,0.00016438,2]
[327349308,1716005440270,-501.72219746,0.00016438,2]
[327349310,1716005440279,-648.32191241,0.00016438,2]
[327349312,1716005440288,-501.38530356,0.00016438,2]
[327349314,1716005440298,-504.00958737,0.00016438,2]
[327349316,1716005440307,-500.0,0.00016438,2]
[327349318,1716005440316,-500.0,0.00016438,2]
[327349320,1716005440326,-514.64243649,0.00016438,2]
[327349322,1716005440335,-500.0,0.00016438,2]
[327349324,1716005440344,-500.0,0.00016438,2]
[327349326,1716005440354,-503.49732163,0.00016438,2]
[327349328,1716005440363,-623.82920468,0.00016438,2]
[327349330,1716005440372,-503.50385804,0.00016438,2]
[327349332,1716005440382,-500.0,0.00016438,2]
[327349334,1716005440392,-500.0,0.00016438,2]
[327349335,1716005440402,-508.72561443,0.00016438,2]
[327349337,1716005440412,-502.05997126,0.00016438,2]
[327349339,1716005440422,-505.15356841,0.00016438,2]
[327349341,1716005440431,-497.78888575,0.00016438,2]
[327349343,1716005440441,-502.21384019,0.00016438,2]
[327349345,1716005440450,-502.17281274,0.00016438,2]
[327349347,1716005440461,-500.0,0.00016438,2]
[327349349,1716005440474,-500.0,0.00016438,2]
[327349351,1716005440483,-513.2078559,0.00016438,2]
[327349353,1716005440494,-501.89116612,0.00016438,2]
[327349355,1716005440506,-501.6171212,0.00016438,2]
[327349357,1716005440515,-505.19323275,0.00016438,2]
[327349359,1716005440525,-507.7976675,0.00016438,2]
[327349361,1716005440534,-500.0,0.00016438,2]
[327349363,1716005440544,-500.0,0.00016438,2]
[327349365,1716005440554,-500.0,0.00016438,2]
[327349367,1716005440563,-500.0,0.00016438,2]
[327349369,1716005440573,-500.0,0.00016438,2]
[327349371,1716005440582,-527.05136394,0.00016438,2]
[327349373,1716005440592,-504.02582672,0.00016438,2]
[327349375,1716005440601,-511.21175295,0.00016438,2]
[327349377,1716005440611,-500.0,0.00016438,2]
[327349379,1716005440621,-500.97931386,0.00016438,2]
[327349381,1716005440631,-502.10785354,0.00016438,2]
[327349383,1716005440641,-505.25175662,0.00016438,2]
[327349385,1716005440651,-500.0,0.00016438,2]
[327349387,1716005440660,-503.31528424,0.00016438,2]
[327349389,1716005440669,-500.0,0.00016438,2]
[327349391,1716005440678,-501.99970545,0.00016438,2]
[327349393,1716005440687,-505.46397718,0.00016438,2]
[327349395,1716005440697,-501.6096035,0.00016438,2]
[327349397,1716005440705,-502.51004455,0.00016438,2]
[327349399,1716005440715,-491.21178867,0.00016438,2]
[327349401,1716005440724,-513.49713772,0.00016438,2]
[327349403,1716005440733,-504.70226746,0.00016438,2]
[327349405,1716005440742,-506.52770784,0.00016438,2]
[327349407,1716005440752,-500.0,0.00016438,2]
[327349409,1716005440761,-440.91002273,0.00016438,2]
[327349411,1716005440770,-500.0,0.00016438,2]
[327349412,1716005440779,-501.6085611,0.00016438,2]
[327349414,1716005440788,-640.16,0.00016438,2]
[327349416,1716005440797,-640.16,0.00016438,2]
[327349419,1716005440806,-640.16,0.00016438,2]
[327349421,1716005440815,-640.16,0.00016438,2]
[327349423,1716005440824,-640.16,0.00016438,2]
[327349424,1716005440833,-640.16,0.00016438,2]
[327349426,1716005440842,-501.15607277,0.00016438,2]
[327349428,1716005440851,-500.0,0.00016438,2]
[327349430,1716005440860,-5058.19,0.00016438,2]
[327349432,1716005440869,-504.56600843,0.00016438,2]
[327349434,1716005440878,-500.0,0.00016438,2]
[327349436,1716005440887,-509.02999421,0.00016438,2]
[327349438,1716005440898,-511.70366749,0.00016438,2]
[327349440,1716005440907,-500.0,0.00016438,2]
[327349442,1716005440916,-4188.03,0.00016438,2]
[327349444,1716005440926,-500.0,0.00016438,2]
[327349446,1716005440935,-500.0,0.00016438,2]
[327349448,1716005440944,-500.0,0.00016438,2]
[327349450,1716005440954,-5652.97,0.00016438,2]
[327349452,1716005440963,-500.0,0.00016438,2]
[327349454,1716005440972,-500.0,0.00016438,2]
[327349456,1716005440981,-500.0,0.00016438,2]
[327349458,1716005440990,-500.0,0.00016438,2]
[327349460,1716005440999,-500.0,0.00016438,2]
[327349462,1716005441008,-2310.72,0.00016438,2]
[327349464,1716005441018,-601.9814888,0.00016438,2]
[327349466,1716005441027,-564.53432852,0.00016438,2]
[327349468,1716005441036,-500.0,0.00016438,2]
[327349470,1716005441045,-500.0,0.00016438,2]
[327349472,1716005441054,-506.53639279,0.00016438,2]
[327349474,1716005441063,-501.20631385,0.00016438,2]
[327349476,1716005441072,-537.42224044,0.00016438,2]
[327349478,1716005441082,-500.0,0.00016438,2]
[327349481,1716005441091,-506.23635785,0.00016438,2]
[327349483,1716005441101,-500.0,0.00016438,2]
[327349485,1716005441110,-24540.07,0.00016438,2]
[327349487,1716005441120,-3648.35,0.00016438,2]
[327349489,1716005441130,-500.0,0.00016438,2]
[327349491,1716005441140,-500.0,0.00016438,2]
[327349493,1716005441150,-501.00130243,0.00016438,2]
[327349495,1716005441159,-500.0,0.00016438,2]
[327349497,1716005441168,-504.26717806,0.00016438,2]
[327349499,1716005441178,-202.19377583,0.00016438,2]
[327349501,1716005441188,-500.0,0.00016438,2]
[327349503,1716005441197,-501.71443717,0.00016438,2]
[327349505,1716005441208,-503.90597654,0.00016438,2]
[327349507,1716005441217,-500.0,0.00016438,2]
[327349509,1716005441226,-646.94021299,0.00016438,2]
[327349511,1716005441235,-537.30098241,0.00016438,2]
[327349513,1716005441245,-506.10049472,0.00016438,2]
[327349515,1716005441254,-500.0,0.00016438,2]
[327349517,1716005441263,-500.0,0.00016438,2]
[327349519,1716005441272,-507.21335429,0.00016438,2]
[327349521,1716005441281,-500.0,0.00016438,2]
[327349523,1716005441290,-1213.37,0.00016438,2]
[327349525,1716005441300,-3084.82,0.00016438,2]
[327349527,1716005441309,-500.0,0.00016438,2]
[327349529,1716005441317,-568.43379303,0.00016438,2]
[327349531,1716005441328,-500.0,0.00016438,2]
[327349534,1716005441341,-776.57,0.00016438,2]
[327349536,1716005441353,-500.0,0.00016438,2]
[327349538,1716005441366,-610.67,0.00016438,2]
[327349541,1716005441378,-500.0,0.00016438,2]
[327349543,1716005441390,-500.0,0.00016438,2]
[327349545,1716005441401,-565.22766407,0.00016438,2]
[327349547,1716005441412,-500.0,0.00016438,2]
[327349550,1716005441424,-502.7989633,0.00016438,2]
[327349552,1716005441436,-500.0,0.00016438,2]
[327349554,1716005441447,-500.0,0.00016438,2]
[327349556,1716005441459,-500.0,0.00016438,2]
[327349559,1716005441476,-500.0,0.00016438,2]
[327349561,1716005441488,-500.0,0.00016438,2]
[327349563,1716005441499,-528.73292164,0.00016438,2]
[327349565,1716005441511,-500.0,0.00016438,2]
[327349568,1716005441524,-500.0,0.00016438,2]
[327349570,1716005441536,-500.0,0.00016438,2]
[327349572,1716005441550,-546.86818698,0.00016438,2]
[327349575,1716005441563,-500.0,0.00016438,2]
[327349577,1716005441574,-500.0,0.00016438,2]
[327349579,1716005441586,-501.61604106,0.00016438,2]
[327349581,1716005441596,-500.0,0.00016438,2]
[327349583,1716005441608,-1074.9,0.00016438,2]
[327349586,1716005441619,-500.0,0.00016438,2]
[327349588,1716005441632,-510.5525724,0.00016438,2]
[327349590,1716005441642,-653.87,0.00016438,2]
[327349592,1716005441655,-500.0,0.00016438,2]
[327349594,1716005441665,-414.87102176,0.00016438,2]
[327349596,1716005441674,-417.06273246,0.00016445,2]
[327349598,1716005441684,-300.0,0.00016497,2]
[327349601,1716005441696,-1000.0,0.00016498,2]
[327349603,1716005441706,-640.16,0.00016499,2]
[327349605,1716005441718,-12703.0,0.000165,2]
[327349607,1716005441729,-239.60631677,0.000165,2]
[327349609,1716005441741,-1000.0,0.00016523,2]
[327349611,1716005441752,-492.86802467,0.00016526,2]
[327349612,1716005441763,-300.0,0.00016537,2]
[327349613,1716005441775,-460.9,0.00016537,2]
[327349614,1716005441788,-461.87848018,0.00016544,2]
[327349615,1716005441800,-4222.10020806,0.0001655,2]
[327349616,1716005441812,-1000.0,0.00016566,2]
[327349617,1716005441823,-1000.0,0.00016587,2]
[327349618,1716005441833,-1000.0,0.00016607,2]
[327349619,1716005441843,-3346.1683299,0.00016609,2]
[327349620,1716005441853,-230.495479,0.00016612,2]
[327349621,1716005441865,-224.05808449,0.00016612,2]
[327349622,1716005441876,-151.0,0.00016612,2]
[327349625,1716005441888,-151.0,0.00016612,2]
[327349627,1716005441901,-443.969272,0.00016612,2]
[327349629,1716005441913,-91.85216671,0.00016612,2]
[327349650,1716005442095,-352.11710529,0.00016612,2]
[327349652,1716005442105,-154.406351,0.00016612,2]
[327349654,1716005442115,-151.0,0.00016612,2]
[327349656,1716005442126,-283.098274,0.00016612,2]
[327349658,1716005442136,-166.773211,0.00016612,2]
[327349661,1716005442147,-1199.642145,0.00016612,2]
[327349662,1716005442157,-166.773211,0.00016612,2]
[327349663,1716005442168,-1199.642145,0.00016612,2]
[327349664,1716005442178,-989.174686,0.00016612,2]
[327349665,1716005442188,-989.174686,0.00016612,2]
[327349666,1716005442199,-151.0,0.00016612,2]
[327349667,1716005442209,-151.0,0.00016612,2]
[327349668,1716005442220,-151.0,0.00016612,2]
[327349669,1716005442230,-3027.685831,0.00016612,2]
[327349670,1716005442240,-3027.685831,0.00016612,2]
[327349671,1716005442251,-10339.47136442,0.00016612,2]
[327349685,1716005442385,-150.0,0.00016273,3]
[327349687,1716005442396,-976.643967,0.00016612,2]
[327349689,1716005442406,-19060.0730799,0.00016612,2]
[327349904,1716005446325,-495.97015531,0.00015,2]
[327349905,1716005446335,-500.0,0.00016438,2]
[327349906,1716005446344,-976.643967,0.00016612,2]
[327349907,1716005446354,-4512.79461478,0.00016612,2]
[327349911,1716006270159,500.0,0.000265,120]
[327349912,1716006356315,-576.24487347,9.507e-05,2]
[327349913,1716006356336,-521.28631068,9.603e-05,2]
[327349914,1716006356357,-521.28631068,9.603e-05,2]
[327349915,1716006356377,-250.0,0.0001439,2]
[327349916,1716006356397,-179.7417658,0.00014533,2]
[327349917,1716006356417,-942.53705457,0.00015,2]
[327349918,1716006356437,-765.21642288,0.00015,2]
[327349940,1716006431211,-154.70605849,0.0001485,2]
[327349941,1716006431231,-416.25039497,0.00015,2]
[327349942,1716006431258,-526.2866596,0.00015,2]
[327349943,1716006431277,-1149.07076386,0.00015219,2]
[327349944,1716006431307,-857.46751667,0.0001522,2]
[327350044,1716006632990,-227.21883131,0.0001485,2]
[327350046,1716006633003,-78.63008062,0.00015,2]
[327350203,1716006638399,-1070.44068324,0.00015,2]
[327350205,1716006638409,-2400.65057528,0.00015219,2]
[327350207,1716006638418,-224.05808449,0.00015222,2]
[327350209,1716006638426,-728.99453914,0.00015222,2]
[327350211,1716006638436,-427.41310835,0.0001532,2]
[327350213,1716006638445,-80000.0,0.00015321,2]
[327350215,1716006638454,-14078.57387391,0.00015322,2]
[327350217,1716006638463,-7967.64444353,0.00016,2]
[327350219,1716006638472,-4222.10020806,0.00016219,2]
[327350221,1716006638481,-384.1,0.00016269,2]
[327350223,1716006638490,-384.1,0.00016269,3]
[327350224,1716006638500,-417.06273246,0.00016293,2]
[327350225,1716006638510,-3346.1683299,0.000164,2]
[327350226,1716006638519,-1000.0,0.00016432,2]
[327350228,1716006638528,-941.07450394,0.00016435,2]
[327350230,1716006638537,-2682.47147379,0.00016438,3]
[327350231,1716006638546,-500.0,0.00016438,2]
[327350232,1716006638555,-502.33557891,0.00016438,2]
[327350233,1716006638565,-423.48114422,0.00016438,2]
[327350234,1716006638574,-501.3410394,0.00016438,2]
[327350235,1716006638582,-500.0,0.00016438,2]
[327350236,1716006638591,-500.0,0.00016438,2]
[327350237,1716006638600,-587.07678689,0.00016438,2]
[327350239,1716006638609,-500.0,0.00016438,2]
[327350241,1716006638618,-500.0,0.00016438,2]
[327350243,1716006638627,-500.0,0.00016438,2]
[327350245,1716006638636,-520.84937839,0.00016438,2]
[327350247,1716006638645,-500.0,0.00016438,2]
[327350249,1716006638653,-500.0,0.00016438,2]
[327350251,1716006638663,-500.0,0.00016438,2]
[327350253,1716006638672,-543.82078266,0.00016438,2]
[327350255,1716006638682,-500.0,0.00016438,2]
[327350257,1716006638693,-510.5525724,0.00016438,2]
[327350259,1716006638702,-500.0,0.00016438,2]
[327350261,1716006638711,-414.87102176,0.00016438,2]
[327350263,1716006638720,-503.66437255,0.00016438,2]
[327350265,1716006638730,-367.72858408,0.00016438,2]
[327350267,1716006638739,-502.29421865,0.00016438,2]
[327350269,1716006638749,-500.0,0.00016438,2]
[327350271,1716006638758,-501.79008016,0.00016438,2]
[327350273,1716006638767,-501.73351118,0.00016438,2]
[327350275,1716006638776,-356.0438854,0.00016438,2]
[327350277,1716006638788,-501.86008471,0.00016438,2]
[327350280,1716006638797,-213.49186503,0.00016438,2]
[327350282,1716006638807,-502.32976113,0.00016438,2]
[327350284,1716006638816,-379.79887098,0.00016438,2]
[327350286,1716006638826,-500.78406,0.00016438,2]
[327350288,1716006638838,-501.81856116,0.00016438,2]
[327350290,1716006638847,-510.16360885,0.00016438,2]
[327350292,1716006638856,-500.64414807,0.00016438,2]
[327350294,1716006638865,-515.3786428,0.00016438,2]
[327350296,1716006638877,-551.10471803,0.00016438,2]
[327350298,1716006638885,-506.6435255,0.00016438,2]
[327350300,1716006638894,-500.0,0.00016438,2]
[327350302,1716006638904,-500.0,0.00016438,2]